fUSD/lending_fUSD_20240525
["ID","MTS","AMOUNT","RATE_DAILY","PERIOD"]
[327925299,1716648640878,-500.0,0.00014,2]
[327925300,1716648640887,-500.0,0.00014,2]
[327925301,1716648640896,-500.0,0.00014,2]
[327925302,1716648640905,-500.0,0.00014,2]
[327925303,1716648640916,-500.0,0.00014,2]
[327925304,1716648640925,-500.0,0.00014,2]
[327925305,1716648640934,-500.0,0.00014,2]
[327925306,1716648640943,-500.0,0.00014,2]
[327925307,1716648640955,-500.0,0.00014,2]
[327925308,1716648640964,-500.0,0.00014,2]
[327925309,1716648640973,-500.0,0.00014,2]
[327925310,1716648640982,-500.0,0.00014,2]
[327925311,1716648640992,-500.0,0.00014,2]
[327925312,1716648641001,-500.0,0.00014,2]
[327925313,1716648641010,-500.0,0.00014,2]
[327925314,1716648641019,-500.0,0.00014,2]
[327925315,1716648641029,-500.0,0.00014,2]
[327925316,1716648641038,-500.0,0.00014,2]
[327925317,1716648641047,-500.0,0.00014,2]
[327925318,1716648641056,-500.0,0.00014,2]
[327925319,1716648641065,-500.0,0.00014,2]
[327925320,1716648641074,-500.0,0.00014,2]
[327925321,1716648641086,-500.0,0.00014,2]
[327925322,1716648641095,-500.0,0.00014,2]
[327925323,1716648641104,-500.0,0.00014,2]
[327925324,1716648641112,-500.0,0.00014,2]
[327925325,1716648641121,-500.0,0.00014,2]
[327925326,1716648641130,-500.0,0.00014,2]
[327925327,1716648641139,-500.0,0.00014,2]
[327925328,1716648641149,-500.0,0.00014,2]
[327925329,1716648641159,-500.0,0.00014,2]
[327925330,1716648641168,-500.0,0.00014,2]
[327925331,1716648641178,-1285.51038,0.0001402,2]
[327925332,1716648641187,-280.0,0.00014075,2]
[327925333,1716648641196,-400.43,0.00014233,2]
[327925334,1716648641207,-4201.6,0.00014384,2]
[327925335,1716648641216,-800.0,0.0001447,2]
[327925336,1716648641225,-150.26,0.00014494,2]
[327925337,1716648641235,-151.0,0.00014504,2]
[327925338,1716648641245,-151.0,0.00014504,2]
[327925339,1716648641254,-152.887846,0.00014504,2]
[327925340,1716648641265,-151.0,0.00014504,2]
[327925341,1716648641274,-154.744918,0.00014504,2]
[327925342,1716648641283,-151.0,0.00014504,2]
[327925344,1716648641293,-163.168342,0.00014504,2]
[327925345,1716648641302,-151.0,0.00014504,2]
[327925346,1716648641312,-151.0,0.00014504,2]
[327925347,1716648641322,-153.003025,0.00014504,2]
[327925348,1716648641333,-151.0,0.00014504,2]
[327925349,1716648641343,-151.0,0.00014504,2]
[327925350,1716648641352,-151.0,0.00014504,2]
[327925351,1716648641361,-151.0,0.00014504,2]
[327925352,1716648641371,-151.0,0.00014504,2]
[327925353,1716648641380,-151.0,0.00014504,2]
[327925354,1716648641389,-156.517302,0.00014504,2]
[327925355,1716648641398,-154.535035,0.00014504,2]
[327925356,1716648641408,-1078.222191,0.00014504,2]
[327925357,1716648641417,-151.0,0.00014504,2]
[327925358,1716648641426,-1078.222191,0.00014504,2]
[327925359,1716648641435,-151.0,0.00014504,2]
[327925360,1716648641445,-151.0,0.00014504,2]
[327925361,1716648641454,-151.0,0.00014504,2]
[327925362,1716648641463,-151.0,0.00014504,2]
[327925363,1716648641472,-227.418951,0.00014504,2]
[327925364,1716648641482,-151.0,0.00014504,2]
[327925365,1716648641491,-153.096631,0.00014504,2]
[327925366,1716648641500,-151.0,0.00014504,2]
[327925367,1716648641509,-151.0,0.00014504,2]
[327925368,1716648641519,-151.0,0.00014504,2]
[327925369,1716648641528,-151.0,0.00014504,2]
[327925370,1716648641537,-183.600768,0.00014504,2]
[327925371,1716648641547,-151.0,0.00014504,2]
[327925372,1716648641556,-183.600768,0.00014504,2]
[327925373,1716648641565,-154.803073,0.00014504,2]
[327925374,1716648641575,-151.0,0.00014504,2]
[327925375,1716648641587,-151.0,0.00014504,2]
[327925376,1716648641596,-3274.35,0.00014504,2]
[327925377,1716648641605,-14444.46,0.00014504,2]
[327925378,1716648641615,-8820.14,0.00014504,2]
[327925379,1716648641624,-1764.36,0.00014504,2]
[327925380,1716648641634,-29999.99,0.00014504,2]
[327925381,1716648641643,-190.148998,0.00014521,2]
[327925382,1716648641653,-1480.01,0.00014621,2]
[327925383,1716648641662,-1285.51037,0.0001465,2]
[327925384,1716648641671,-150.0,0.0001482,2]
[327925385,1716648641681,-209.7670879,0.000149,2]
[327925386,1716648641690,-2565.47546882,0.00014945,2]
[327925387,1716648641700,-151.15,0.00014959,2]
[327925388,1716648641710,-200.0,0.00014995,2]
[327925389,1716648641719,-155.16690706,0.00015,2]
[327925390,1716648641729,-200.0,0.00015,2]
[327925391,1716648641738,-619.02429447,0.00015,2]
[327925392,1716648641748,-257.8324195,0.00015,2]
[327925393,1716648641757,-5900.0,0.00015,2]
[327925394,1716648641767,-62212.99105888,0.00015,2]
[327925395,1716648641777,-486.0,0.00015,2]
[327925396,1716648641787,-7291.0,0.00015,2]
[327925397,1716648641796,-151.0,0.00015,2]
[327925398,1716648641806,-156.457115,0.00015,2]
[327925399,1716648641816,-152.087017,0.00015,2]
[327925400,1716648641826,-151.0,0.00015,2]
[327925401,1716648641837,-531.706862,0.00015,2]
[327925402,1716648641847,-531.706862,0.00015,2]
[327925403,1716648641857,-151.0,0.00015,2]
[327925404,1716648641866,-258.710118,0.00015,2]
[327925405,1716648641881,-151.0,0.00015,2]
[327925406,1716648641891,-151.0,0.00015,2]
[327925407,1716648641900,-151.0,0.00015,2]
[327925408,1716648641910,-215.808693,0.00015,2]
[327925409,1716648641920,-205.630108,0.00015,2]
[327925410,1716648641931,-215.808693,0.00015,2]
[327925411,1716648641940,-205.630108,0.00015,2]
[327925412,1716648641949,-283.145968,0.00015,2]
[327925413,1716648641963,-151.0,0.00015,2]
[327925414,1716648641972,-151.0,0.00015,2]
[327925415,1716648641982,-151.0,0.00015,2]
[327925416,1716648641991,-151.0,0.00015,2]
[327925417,1716648642000,-151.0,0.00015,2]
[327925418,1716648642009,-155.548489,0.00015,2]
[327925419,1716648642018,-151.0,0.00015,2]
[327925420,1716648642029,-936.0,0.00015,2]
[327925421,1716648642038,-151.0,0.00015,2]
[327925422,1716648642048,-2651.0,0.00015014,2]
[327925423,1716648642057,-4201.6,0.00015068,2]
[327925424,1716648642067,-300.0,0.00015068,2]
[327925425,1716648642077,-509.67692697,0.00015169,2]
[327925426,1716648642087,-1285.51038,0.0001527,2]
[327925427,1716648642096,-190.148998,0.00015342,2]
[327925428,1716648642105,-250.0,0.00015368,2]
[327925429,1716648642114,-361.06,0.00015425,2]
[327925430,1716648642124,-539.42616704,0.00015483,2]
[327925431,1716648642133,-151.0,0.00015753,2]
[327925432,1716648642142,-4201.6,0.00015753,2]
[327925433,1716648642151,-165.32,0.00015831,2]
[327925434,1716648642161,-167.84,0.00015831,2]
[327925435,1716648642171,-167.21,0.00015831,2]
[327925436,1716648642180,-151.0,0.00015831,2]
[327925437,1716648642189,-1285.51038,0.0001589,2]
[327925438,1716648642199,-245.54297139,0.00015916,2]
[327925439,1716648642208,-800.0,0.00015917,2]
[327925440,1716648642218,-300.513351,0.00016116,2]
[327925441,1716648642227,-152.544128,0.00016116,2]
[327925442,1716648642236,-5616.33,0.00016116,2]
[327925443,1716648642246,-190.148998,0.00016164,2]
[327925444,1716648642256,-975.0,0.00016176,2]
[327925445,1716648642265,-1644.0,0.00016176,2]
[327925446,1716648642275,-470.94,0.00016176,2]
[327925447,1716648642284,-613.0,0.00016176,2]
[327925448,1716648642294,-1312.376,0.00016176,2]
[327925449,1716648642303,-1264.0,0.00016176,2]
[327925450,1716648642311,-150.498,0.00016176,2]
[327925451,1716648642320,-809.0,0.00016176,2]
[327925452,1716648642332,-164.0,0.00016176,2]
[327925453,1716648642341,-2397.0,0.00016176,2]
[327925454,1716648642350,-449.965,0.00016176,2]
[327925455,1716648642359,-1138.0,0.00016176,2]
[327925456,1716648642368,-1650.0,0.00016176,2]
[327925457,1716648642376,-218.0,0.00016176,2]
[327925458,1716648642386,-150.964,0.00016176,2]
[327925459,1716648642394,-3164.0,0.00016176,2]
[327925460,1716648642403,-346.246,0.00016176,2]
[327925461,1716648642412,-1508.652,0.00016176,2]
[327925462,1716648642421,-5762.0,0.00016176,2]
[327925463,1716648642430,-5137.0,0.00016176,2]
[327925464,1716648642438,-37920.0,0.00016176,2]
[327925465,1716648642447,-150.133,0.00016176,2]
[327925466,1716648642456,-159.86547132,0.0001635,2]
[327925467,1716648642465,-151.0,0.00016438,2]
[327925468,1716648642474,-151.0,0.00016438,2]
[327925469,1716648642484,-1680.72,0.00016438,2]
[327925470,1716648642493,-4201.6,0.00016438,2]
[327925471,1716648642504,-300.0,0.00016438,2]
[327925472,1716648642514,-200.0,0.00016494,2]
[327925473,1716648642523,-400.43,0.00016497,2]
[327925474,1716648642533,-1227.95940182,0.000165,2]
[327925475,1716648642542,-167.21,0.00016702,2]
[327925476,1716648642551,-179.69,0.00016712,2]
[327925477,1716648642560,-161.619254,0.000169,2]
[327925478,1716648642570,-190.148998,0.00016986,2]
[327925479,1716648642580,-2565.47546882,0.00016991,2]
[327925480,1716648642590,-5083.27432854,0.00017,2]
[327925481,1716648642599,-1145.42183706,0.00017225,2]
[327925482,1716648642609,-1480.01,0.0001736,2]
[327925483,1716648642618,-800.0,0.00017364,2]
[327925484,1716648642627,-195.349,0.00017387,2]
[327925485,1716648642637,-150.26,0.00017427,2]
[327925486,1716648642646,-509.67692697,0.00017437,2]
[327925487,1716648642656,-10000.0,0.00017468,2]
[327925488,1716648642665,-167.21,0.00017573,2]
[327925489,1716648642675,-190.148998,0.00017808,2]
[327925490,1716648642684,-151.0,0.00017932,3]
[327925491,1716648642694,-151.0,0.00017932,2]
[327925492,1716648642704,-200.0,0.00017994,2]
[327925493,1716648642713,-804.30557965,0.00018,2]
[327925494,1716648642723,-167.21,0.00018444,2]
[327925495,1716648642732,-190.148998,0.0001863,2]
[327925496,1716648642742,-400.43,0.00018761,2]
[327925497,1716648642751,-410.60328131,0.00019,2]
[327925498,1716648642760,-155.2637372,0.00019,2]
[327925499,1716648642770,-1009.0,0.00019,2]
[327925500,1716648642780,-151.0,0.00019018,2]
[327925501,1716648642790,-2565.47546882,0.00019036,2]
[327925502,1716648642799,-352.18,0.00019068,2]
[327925503,1716648642809,-224.63,0.00019068,2]
[327925504,1716648642818,-327.26,0.00019068,2]
[327925505,1716648642829,-421.16,0.00019068,2]
[327925506,1716648642838,-300.0,0.00019068,2]
[327925507,1716648642847,-150.0,0.00019068,2]
[327925508,1716648642856,-150.0,0.00019068,2]
[327925509,1716648642865,-150.0,0.00019068,2]
[327925510,1716648642878,-150.0,0.00019068,2]
[327925511,1716648642888,-150.0,0.00019068,2]
[327925512,1716648642898,-703.76,0.00019068,2]
[327925513,1716648642907,-150.0,0.00019068,2]
[327925514,1716648642918,-150.0,0.00019068,2]
[327925515,1716648642928,-152.34,0.00019068,2]
[327925516,1716648642938,-326.14,0.00019068,2]
[327925517,1716648642947,-352.18,0.00019068,2]
[327925518,1716648642958,-150.0,0.00019068,2]
[327925519,1716648642967,-163.63,0.00019068,2]
[327925520,1716648642976,-150.0,0.00019068,2]
[327925521,1716648642985,-300.0,0.00019068,2]
[327925522,1716648642995,-352.18,0.00019068,2]
[327925523,1716648643004,-421.16,0.00019068,2]
[327925524,1716648643013,-163.63,0.00019068,2]
[327925525,1716648643023,-150.0,0.00019068,2]
[327925526,1716648643032,-421.16,0.00019068,2]
[327925527,1716648643041,-163.63,0.00019068,2]
[327925528,1716648643050,-352.18,0.00019068,2]
[327925529,1716648643060,-300.0,0.00019068,2]
[327925530,1716648643070,-150.0,0.00019068,2]
[327925531,1716648643080,-327.26,0.00019068,2]
[327925532,1716648643091,-421.16,0.00019068,2]
[327925533,1716648643100,-704.36,0.00019068,2]
[327925534,1716648643110,-163.63,0.00019068,2]
[327925535,1716648643119,-421.16,0.00019068,2]
[327925536,1716648643129,-150.0,0.00019068,2]
[327925537,1716648643138,-352.18,0.00019068,2]
[327925538,1716648643147,-421.16,0.00019068,2]
[327925539,1716648643156,-150.0,0.00019068,2]
[327925540,1716648643166,-352.18,0.00019068,2]
[327925541,1716648643175,-150.0,0.00019068,2]
[327925542,1716648643185,-163.63,0.00019068,2]
[327925543,1716648643195,-150.0,0.00019175,2]
[327925544,1716648643204,-974.573,0.00019176,2]
[327925545,1716648643214,-1644.0,0.00019176,2]
[327925546,1716648643224,-440.0,0.00019176,2]
[327925547,1716648643233,-613.0,0.00019176,2]
[327925548,1716648643243,-1225.0,0.00019176,2]
[327925549,1716648643252,-1264.0,0.00019176,2]
[327925550,1716648643262,-150.0,0.00019176,2]
[327925551,1716648643271,-809.0,0.00019176,2]
[327925552,1716648643281,-164.0,0.00019176,2]
[327925553,1716648643290,-2397.0,0.00019176,2]
[327925554,1716648643300,-445.0,0.00019176,2]
[327925555,1716648643310,-1138.0,0.00019176,2]
[327925556,1716648643319,-1650.0,0.00019176,2]
[327925558,1716648643329,-215.0,0.00019176,2]
[327925559,1716648643340,-150.0,0.00019176,2]
[327925561,1716648643464,-3164.0,0.00019176,2]
[327925566,1716648643495,-289.0,0.00019176,2]
[327925568,1716648643505,-1466.0,0.00019176,2]
[327925571,1716648643515,-5762.0,0.00019176,2]
[327925574,1716648643525,-5137.0,0.00019176,2]
[327925576,1716648643535,-37920.0,0.00019176,2]
[327925579,1716648643547,-500.0,0.00019178,2]
[327925581,1716648643556,-500.0,0.00019178,2]
[327925583,1716648643565,-500.0,0.00019178,2]
[327925584,1716648643575,-632.88089841,0.00019178,2]
[327925586,1716648643587,-500.0,0.00019178,2]
[327925588,1716648643596,-500.0,0.00019178,2]
[327925590,1716648643606,-500.0,0.00019178,2]
[327925592,1716648643615,-500.0,0.00019178,2]
[327925594,1716648643624,-500.0,0.00019178,2]
[327925596,1716648643634,-500.0,0.00019178,2]
[327925598,1716648643643,-500.0,0.00019178,2]
[327925599,1716648643652,-500.0,0.00019178,2]
[327925601,1716648643662,-500.0,0.00019178,2]
[327925603,1716648643672,-500.0,0.00019178,2]
[327925605,1716648643681,-500.0,0.00019178,2]
[327925607,1716648643691,-500.0,0.00019178,2]
[327925609,1716648643700,-235.81119881,0.00019178,2]
[327925611,1716648643709,-500.0,0.00019178,2]
[327925612,1716648643719,-500.0,0.00019178,2]
[327925613,1716648643728,-500.0,0.00019178,2]
[327925614,1716648643737,-500.0,0.00019178,2]
[327925615,1716648643747,-500.0,0.00019178,2]
[327925616,1716648643757,-500.0,0.00019178,2]
[327925617,1716648643766,-500.0,0.00019178,2]
[327925618,1716648643776,-500.0,0.00019178,2]
[327925619,1716648643786,-372.24894226,0.00019178,2]
[327925620,1716648643796,-411.59134999,0.00019178,2]
[327925621,1716648643806,-578.91614681,0.00019178,2]
[327925623,1716648643816,-500.0,0.00019178,2]
[327925624,1716648643825,-434.865098,0.00019178,2]
[327925625,1716648643836,-151.0,0.00019178,2]
[327925626,1716648643845,-2259.65,0.00019178,2]
[327925627,1716648643855,-3883.18996503,0.000192,2]
[327925628,1716648643864,-692.98,0.000192,2]
[327925629,1716648643875,-190.148998,0.00019452,2]
[327925630,1716648643886,-505.97,0.000195,2]
[327925631,1716648643895,-150.103,0.00019542,2]
[327925632,1716648643905,-150.228,0.00019542,2]
[327925633,1716648643915,-179.0,0.00019542,2]
[327925634,1716648643924,-283.982,0.00019542,2]
[327925635,1716648643934,-182.639,0.00019542,2]
[327925636,1716648643943,-299.398,0.00019542,2]
[327925637,1716648643953,-150.226,0.00019542,2]
[327925638,1716648643964,-150.249,0.00019542,2]
[327925639,1716648643974,-509.67692697,0.00019706,2]
[327925640,1716648643984,-10000.0,0.0001979,2]
[327925641,1716648643993,-159.86547132,0.00019799,2]
[327925642,1716648644003,-1266.34594844,0.000199,3]
[327925643,1716648644012,-150.26,0.0001999,2]
[327925644,1716648644022,-158.51579806,0.0002,2]
[327925645,1716648644031,-155.0,0.0002,2]
[327925646,1716648644041,-3645.70817053,0.0002,2]
[327925647,1716648644051,-308.3572324,0.0002,2]
[327925648,1716648644060,-155.3811116,0.0002,2]
[327925649,1716648644070,-155.0,0.0002,2]
[327925650,1716648644081,-5189.03261963,0.0002,2]
[327925651,1716648644091,-458.06978826,0.0002,2]
[327925652,1716648644100,-155.0,0.0002,2]
[327925654,1716648644110,-505.6273792,0.0002,2]
[327925655,1716648644119,-1002.0,0.0002,3]
[327925657,1716648644128,-155.0,0.0002,4]
[327925658,1716648644138,-811.11187339,0.0002,2]
[327925660,1716648644147,-291.28965664,0.0002,2]
[327925663,1716648644156,-152684.8017451,0.0002,4]
[327925666,1716648644168,-3742.15099099,0.0002,2]
[327925669,1716648644177,-6653.0,0.0002,2]
[327925672,1716648644186,-3958.06878433,0.0002,2]
[327925674,1716648644196,-3950.0,0.0002,2]
[327925677,1716648644205,-2562.42303804,0.0002,2]
[327925680,1716648644215,-1401.0,0.0002,2]
[327925683,1716648644225,-1004.25481122,0.0002,2]
[327925686,1716648644234,-155.44744836,0.0002,2]
[327925688,1716648644244,-1499.69141385,0.0002,2]
[327925690,1716648644254,-151.0,0.0002,2]
[327925691,1716648644264,-192.018609,0.0002,2]
[327925692,1716648644273,-531.706862,0.0002,2]
[327925693,1716648644283,-531.706862,0.0002,2]
[327925694,1716648644294,-151.0,0.0002,2]
[327925695,1716648644304,-151.0,0.0002,2]
[327925696,1716648644314,-151.0,0.0002,2]
[327925697,1716648644324,-151.0,0.0002,2]
[327925698,1716648644335,-215.808693,0.0002,2]
[327925700,1716648644344,-205.630108,0.0002,2]
[327925702,1716648644353,-215.808693,0.0002,2]
[327925703,1716648644363,-205.630108,0.0002,2]
[327925705,1716648644373,-151.595446,0.0002,2]
[327925707,1716648644383,-151.0,0.0002,2]
[327925709,1716648644393,-151.0,0.0002,2]
[327925711,1716648644403,-153.737174,0.0002,2]
[327925713,1716648644413,-151.0,0.0002,2]
[327925715,1716648644424,-151.0,0.0002,2]
[327925717,1716648644435,-154.689449,0.0002,2]
[327925718,1716648644445,-151.0,0.0002,2]
[327925720,1716648644456,-155.0,0.0002,2]
[327925721,1716648644466,-155.0,0.0002,2]
[327925722,1716648644476,-151.0,0.0002,2]
[327925723,1716648644486,-215.720973,0.0002,2]
[327925724,1716648644496,-151.0,0.0002,2]
[327925725,1716648644506,-151.0,0.0002,2]
[327925726,1716648644516,-151.0,0.0002,2]
[327925727,1716648644527,-151.0,0.0002,2]
[327925728,1716648644536,-151.0,0.0002,2]
[327925729,1716648644547,-157.560293,0.0002,2]
[327925730,1716648644556,-151.0,0.0002,2]
[327925731,1716648644566,-151.0,0.0002,2]
[327925732,1716648644576,-151.0,0.0002,2]
[327925733,1716648644588,-156.38935,0.0002,2]
[327925734,1716648644598,-1078.222191,0.0002,2]
[327925735,1716648644608,-151.0,0.0002,2]
[327925736,1716648644619,-1078.222191,0.0002,2]
[327925737,1716648644629,-151.0,0.0002,2]
[327925738,1716648644639,-151.531368,0.0002,2]
[327925739,1716648644648,-155.973979,0.0002,2]
[327925740,1716648644658,-151.0,0.0002,2]
[327925741,1716648644667,-151.0,0.0002,2]
[327925742,1716648644676,-150.0,0.0002,2]
[327925743,1716648644685,-151.0,0.0002,2]
[327925744,1716648644695,-151.0,0.0002,2]
[327925745,1716648644705,-151.0,0.0002,2]
[327925746,1716648644716,-151.0,0.0002,2]
[327925747,1716648644726,-183.600768,0.0002,2]
[327925748,1716648644736,-183.600768,0.0002,2]
[327925749,1716648644746,-151.0,0.0002,2]
[327925750,1716648644756,-151.0,0.0002,2]
[327925751,1716648644766,-151.0,0.0002,2]
[327925752,1716648644776,-2079.08889439,0.0002009,2]
[327925753,1716648644786,-382.0,0.0002021,2]
[327925754,1716648644796,-190.148998,0.00020274,2]
[327925755,1716648644806,-524.53,0.00020384,2]
[327925756,1716648644817,-524.53,0.00020384,2]
[327925757,1716648644826,-524.53,0.00020384,2]
[327925758,1716648644839,-524.53,0.00020384,2]
[327925759,1716648644848,-524.53,0.00020384,2]
[327925760,1716648644858,-524.53,0.00020384,2]
[327925761,1716648644867,-524.53,0.00020384,2]
[327925762,1716648644881,-524.53,0.00020384,2]
[327925763,1716648644890,-524.53,0.00020384,2]
[327925764,1716648644898,-524.53,0.00020384,2]
[327925765,1716648644907,-524.53,0.00020384,2]
[327925766,1716648644919,-524.53,0.00020384,2]
[327925767,1716648644928,-524.53,0.00020384,2]
[327925768,1716648644937,-524.53,0.00020384,2]
[327925769,1716648644946,-152.82,0.00020447,2]
[327925770,1716648644956,-166.93,0.00020447,2]
[327925771,1716648644966,-150.0,0.000205,2]
[327925772,1716648644975,-171.11,0.00020548,2]
[327925773,1716648644984,-524.53,0.00020712,2]
[327925774,1716648644994,-524.53,0.00020712,2]
[327925775,1716648645003,-524.53,0.00020712,2]
[327925776,1716648645012,-524.53,0.00020712,2]
[327925777,1716648645022,-524.53,0.00020712,2]
[327925778,1716648645033,-524.53,0.00020712,2]
[327925779,1716648645043,-524.53,0.00020712,2]
[327925780,1716648645053,-524.53,0.00020712,2]
[327925781,1716648645063,-524.53,0.00020712,2]
[327925782,1716648645072,-524.53,0.00020712,2]
[327925783,1716648645083,-382.0,0.0002073,2]
[327925784,1716648645092,-4474.76310645,0.00021,2]
[327925785,1716648645103,-1000.0,0.00021,3]
[327925786,1716648645112,-1437.4086983,0.00021,2]
[327925787,1716648645121,-2548.73780077,0.00021,2]
[327925788,1716648645131,-1050.0,0.00021,2]
[327925789,1716648645140,-150.0,0.00021,2]
[327925790,1716648645150,-400.43,0.00021025,2]
[327925791,1716648645159,-2565.47546882,0.00021082,2]
[327925792,1716648645169,-152.911125,0.00021082,2]
[327925793,1716648645179,-382.0,0.0002124,2]
[327925794,1716648645189,-150.0,0.000215,3]
[327925795,1716648645200,-524.53,0.00021534,2]
[327925796,1716648645210,-524.53,0.00021534,2]
[327925797,1716648645220,-524.53,0.00021534,2]
[327925798,1716648645230,-524.53,0.00021534,2]
[327925799,1716648645240,-524.53,0.00021534,2]
[327925800,1716648645250,-524.53,0.00021534,2]
[327925801,1716648645259,-524.53,0.00021534,2]
[327925802,1716648645268,-524.53,0.00021534,2]
[327925803,1716648645278,-524.53,0.00021534,2]
[327925804,1716648645287,-524.53,0.00021534,2]
[327925805,1716648645297,-524.53,0.00021534,2]
[327925806,1716648645307,-524.53,0.00021534,2]
[327925807,1716648645316,-524.53,0.00021534,2]
[327925808,1716648645326,-524.53,0.00021534,2]
[327925809,1716648645337,-660.39,0.00021534,2]
[327925810,1716648645346,-524.53,0.00021534,2]
[327925811,1716648645355,-524.53,0.00021534,2]
[327925812,1716648645365,-524.53,0.00021534,2]
[327925813,1716648645373,-524.53,0.00021534,2]
[327925814,1716648645383,-522.04,0.00021534,2]
[327925815,1716648645392,-19636.47058133,0.000216,2]
[327925816,1716648645402,-692.98,0.000216,2]
[327925817,1716648645411,-382.0,0.0002176,2]
[327925818,1716648645421,-210.0,0.0002176,2]
[327925819,1716648645431,-6796.89482245,0.000219,2]
[327925820,1716648645440,-475.23073127,0.000219,2]
[327925821,1716648645450,-1000.0,0.000219,2]
[327925822,1716648645459,-704.66,0.00021918,2]
[327925823,1716648645468,-172.14,0.00021918,2]
[327925824,1716648645478,-174.93,0.00021918,2]
[327925825,1716648645488,-250.0,0.00021918,2]
[327925826,1716648645498,-2000.0,0.00021918,2]
[327925827,1716648645508,-509.67692697,0.00021974,2]
[327925828,1716648645517,-1102.86625356,0.00022,2]
[327925829,1716648645526,-788.11263962,0.00022,2]
[327925830,1716648645535,-150.0,0.00022,3]
[327925831,1716648645544,-166.66666666,0.00022116,2]
[327925832,1716648645553,-715.49994283,0.00022136,2]
[327925833,1716648645561,-1644.0,0.00022176,2]
[327925834,1716648645570,-440.0,0.00022176,2]
[327925835,1716648645579,-1225.0,0.00022176,2]
[327925836,1716648645589,-1264.0,0.00022176,2]
[327925837,1716648645598,-809.0,0.00022176,2]
[327925838,1716648645607,-1476.318,0.00022176,2]
[327925839,1716648645616,-445.0,0.00022176,2]
[327925840,1716648645625,-1138.0,0.00022176,2]
[327925841,1716648645635,-1648.0,0.00022176,2]
[327925842,1716648645644,-215.0,0.00022176,2]
[327925843,1716648645653,-150.0,0.00022176,2]
[327925844,1716648645662,-3164.0,0.00022176,2]
[327925845,1716648645671,-289.0,0.00022176,2]
[327925846,1716648645681,-5762.0,0.00022176,2]
[327925847,1716648645690,-3252.634,0.00022176,2]
[327925848,1716648645699,-37920.0,0.00022176,2]
[327925849,1716648645708,-382.0,0.0002227,2]
[327925850,1716648645717,-210.0,0.0002227,2]
[327925851,1716648645726,-156.13314999,0.00022282,2]
[327925852,1716648645736,-152.79444414,0.00022307,2]
[327925853,1716648645745,-459.06088173,0.0002231,2]
[327925854,1716648645755,-157.2664868,0.00022312,2]
[327925855,1716648645764,-159.1909715,0.00022353,2]
[327925856,1716648645773,-166.29644051,0.00022355,2]
[327925857,1716648645783,-524.53,0.00022356,2]
[327925858,1716648645792,-152.34218529,0.00022419,2]
[327925859,1716648645801,-375.48871791,0.00022433,2]
[327925860,1716648645810,-156.13314999,0.00022463,2]
[327925861,1716648645820,-150.0,0.000225,3]